bitfinex-derivatives/quotes_ETHF0:USTF0_20250602
["timestamp","ask_amount","ask_price","bid_price","bid_amount"]
[1748835553736,5.67191869,2497.0,2496.9,0.4804]
[1748835553942,24.44891869,2497.0,2496.9,0.4804]
[1748835554743,24.44891869,2497.0,2496.8,4.176]
[1748835554944,23.2877,2497.0,2496.9,0.4804]
[1748835555139,24.4481227,2497.0,2496.9,0.4804]
[1748835555946,4.3682227,2497.0,2496.9,0.4804]
[1748835556238,3.2078,2497.0,2496.9,0.4804]
[1748835556842,3.2078,2497.0,2496.9,0.9804]
[1748835558345,6.37823413,2497.0,2496.9,0.9804]
[1748835558841,4.36833413,2497.0,2496.9,0.9804]
[1748835559645,5.64343413,2497.0,2496.9,0.9804]
[1748835562440,3.2078,2497.0,2496.9,0.9804]
[1748835563147,3.2078,2497.0,2496.9,1.7828]
[1748835564146,3.2078,2497.7,2497.0,1.20096]
[1748835564347,19.93733397,2497.6,2497.1,5.5689]
[1748835564647,20.0966,2497.6,2497.5,0.48029]
[1748835564841,21.25698195,2497.6,2497.5,0.48029]
[1748835565745,1.16038195,2497.6,2497.5,0.48029]
[1748835565941,21.9838,2497.7,2497.6,0.48027]
[1748835566745,1.16038312,2497.7,2497.6,0.48027]
[1748835567047,18.776,2497.8,2497.7,0.48024]
[1748835567247,19.93622902,2497.8,2497.7,0.48024]
[1748835567745,1.16022902,2497.8,2497.7,0.48024]
[1748835567943,1.16022902,2497.8,2497.7,0.98024]
[1748835569146,2.0867,2498.0,2497.9,0.48021]
[1748835569340,3.24631474,2498.0,2497.9,0.48021]
[1748835570138,2.0867,2498.0,2497.7,0.5]
[1748835570346,1.15934897,2497.9,2497.8,41.28023]
[1748835570543,2.98275897,2497.9,2497.8,40.8]
[1748835570739,2.50254897,2497.9,2497.8,41.28023]
[1748835571046,19.93234897,2497.9,2497.8,0.48023]
[1748835571250,3.9857,2498.2,2497.8,1.2998]
[1748835571546,3.9857,2498.2,2498.1,0.48017]
[1748835572646,3.2078,2498.2,2498.1,0.48017]
[1748835573052,3.2078,2498.2,2498.1,1.77367]
[1748835574647,3.2078,2498.2,2497.7,0.5]
[1748835574850,2.0821,2498.1,2497.7,0.5]
[1748835575149,1.3013,2498.0,2497.9,0.48021]
[1748835575752,19.5518,2498.1,2498.0,0.48019]
[1748835575954,0.7808,2498.1,2498.0,0.48019]
[1748835576757,3.2078,2498.5,2498.4,0.48009]
[1748835577252,3.2078,2498.5,2498.3,0.48012]
[1748835577555,3.2078,2498.5,2498.4,0.48011]
[1748835578648,0.7912,2498.6,2498.5,0.48009]
[1748835578844,0.7912,2498.6,2498.5,1.79569]
[1748835579048,1.27128,2498.6,2498.4,4.174]
[1748835579253,1.3874,2498.5,2498.4,4.65411]
[1748835579658,1.3874,2498.5,2498.4,4.174]
[1748835579851,1.3874,2498.5,2498.3,7.3818]
[1748835580156,1.8675,2498.5,2498.3,4.174]
[1748835580359,0.48011,2498.4,2498.3,4.174]
[1748835580654,1.86751,2498.4,2498.3,4.174]
[1748835580849,1.3874,2498.4,2498.3,4.174]
[1748835582354,0.7912,2498.6,2498.3,4.174]
[1748835582854,20.04028,2498.6,2498.3,6.01012]
[1748835583159,1.3899,2498.5,2498.3,6.01012]
[1748835583359,1.3899,2498.5,2498.4,0.48011]
[1748835583961,1.3899,2498.5,2498.3,6.51012]
[1748835584656,19.5602,2498.6,2498.3,6.03]
[1748835584858,20.04029,2498.6,2498.3,5.15412]
[1748835585056,1.279,2498.5,2498.3,5.15412]
[1748835585563,1.7591,2498.5,2498.3,5.15412]
[1748835585962,1.279,2498.5,2498.3,5.15412]
[1748835586357,1.279,2498.5,2498.4,0.48011]
[1748835587166,1.279,2498.5,2498.3,5.15412]
[1748835587366,0.48011,2498.4,2498.3,0.5]
[1748835587865,1.84381,2498.4,2498.3,0.5]
[1748835588967,3.00017127,2498.4,2498.3,0.5]
[1748835592474,2.52006127,2498.4,2498.3,0.98013]
[1748835592672,1.15636127,2498.4,2498.3,0.98013]
[1748835592867,3.2078,2498.5,2498.4,0.48011]
[1748835593069,3.2078,2498.5,2498.4,4.65211]
[1748835593270,3.2078,2498.5,2498.4,6.03561]
[1748835593565,3.2078,2498.5,2498.4,1.3835]
[1748835593772,4.36677804,2498.5,2498.4,0.48011]
[1748835593976,4.84689774,2498.5,2498.3,0.98013]
[1748835594268,1.28151,2498.4,2498.3,0.5]
[1748835594665,4.50083659,2498.4,2498.3,0.5]
[1748835596575,4.50176243,2498.4,2498.3,0.5]
[1748835596965,0.48013,2498.3,2498.2,0.00600913]
[1748835597170,1.77133,2498.3,2498.2,0.00600913]
[1748835597371,3.19036174,2498.3,2498.2,0.00600913]
[1748835597870,3.1903608,2498.3,2498.2,0.00600913]
[1748835598177,3.19037147,2498.3,2498.2,0.00600913]
[1748835598370,3.19043421,2498.3,2498.2,0.00600913]
[1748835598571,2.93118243,2498.3,2498.2,0.00600913]
[1748835599172,8.19043431,2498.3,2498.2,0.00600913]
[1748835599371,9.8245048,2498.3,2497.5,4.172]
[1748835599572,0.48022,2497.9,2497.7,0.48024]
[1748835599771,1.15985243,2497.8,2497.6,0.48026]
[1748835600076,3.33415243,2497.8,2497.7,0.48025]
[1748835600280,1.96535243,2497.8,2497.7,0.48025]
[1748835600573,18.766,2497.9,2497.8,0.48023]
[1748835600875,1.16007339,2497.9,2497.8,0.48023]
[1748835602376,1.16007339,2497.9,2497.8,3.68803]
[1748835602577,0.00600913,2498.0,2497.9,0.48021]
[1748835602881,1.16611496,2498.0,2497.9,6.75621]
[1748835603374,1.16010582,2498.0,2497.9,6.75621]
[1748835603586,2.02502,2498.4,2497.9,6.276]
[1748835603880,2.02502,2498.4,2498.2,0.48015]
[1748835604777,0.48014,2498.3,2498.1,0.48016]
[1748835604975,3.2078,2498.3,2497.5,0.50600913]
[1748835605171,0.48018,2498.1,2497.9,0.48021]
[1748835605372,1.87917,2498.2,2497.9,1.2949]
[1748835605877,1.87917,2498.2,2498.0,0.48019]
[1748835606774,0.4802,2498.0,2497.8,4.65322]
[1748835606979,0.7993,2497.9,2497.8,4.65323]
[1748835607773,0.7993,2497.9,2497.8,0.48023]
[1748835608674,0.7993,2497.9,2497.8,1.86073]
[1748835609483,18.767,2498.0,2497.9,0.48021]
[1748835609680,18.767,2498.0,2497.9,1.82701]
[1748835609878,0.48017,2498.2,2498.0,0.48019]
[1748835610179,18.768,2498.1,2498.0,0.48019]
[1748835610678,19.24817,2498.1,2497.9,0.4802]
[1748835610882,1.2876,2498.0,2497.9,0.4802]
[1748835613180,0.48023,2497.8,2497.7,0.48025]
[1748835613380,1.5349,2497.9,2497.8,0.48023]
[1748835613681,19.5043,2497.9,2497.8,0.48023]
[1748835614082,20.8514,2497.9,2497.8,0.48023]
[1748835615383,22.0114388,2497.9,2497.8,0.48023]
[1748835616481,3.2444388,2497.9,2497.8,0.48023]
[1748835616678,1.8973388,2497.9,2497.8,0.48023]
[1748835616883,3.2078,2498.0,2497.9,0.48021]
[1748835617085,21.9748,2498.0,2497.9,0.48021]
[1748835617284,23.13474608,2498.0,2497.9,0.98021]
[1748835618585,1.15994608,2498.0,2497.9,0.98021]
[1748835618879,19.92694608,2498.0,2497.9,0.98021]
[1748835619886,1.15994608,2498.0,2497.9,0.98021]
[1748835620087,19.92594608,2498.0,2497.9,2.26861]
[1748835620780,19.92608677,2498.0,2497.9,2.26861]
[1748835620981,1.16008677,2498.0,2497.9,2.26861]
[1748835621184,19.92608677,2498.0,2497.9,2.26861]
[1748835621484,19.92605415,2498.0,2497.9,2.26861]
[1748835621688,1.16005415,2498.0,2497.9,2.26861]
[1748835624185,18.766,2498.1,2498.0,0.48019]
[1748835624382,19.92644278,2498.1,2498.0,1.87889]
[1748835624581,1.16044278,2498.1,2498.0,1.87889]
[1748835625790,19.5423,2498.2,2498.1,0.48017]
[1748835625987,20.96247506,2498.2,2498.1,1.87887]
[1748835626284,1.93798184,2498.2,2498.1,1.87887]
[1748835626489,20.70298184,2498.2,2498.1,1.87887]
[1748835626786,1.42017696,2498.2,2498.1,1.87887]
[1748835627088,1.16068184,2498.2,2498.1,1.87887]
[1748835627888,1.16068184,2498.2,2498.1,2.37887]
[1748835628684,2.0486,2498.6,2498.5,0.4801]
[1748835628882,22.4921016,2498.6,2498.5,0.4801]
[1748835629086,2.43850309,2498.6,2498.5,0.4801]
[1748835629285,2.43850528,2498.6,2498.5,0.4801]
[1748835629486,2.438506,2498.6,2498.5,0.4801]
[1748835630091,1.27794317,2498.6,2498.5,0.4801]
[1748835630287,2.43780335,2498.6,2498.5,0.4801]
[1748835630487,2.43780243,2498.6,2498.5,0.4801]
[1748835630694,1.6788019,2498.6,2498.5,0.4801]
[1748835630886,1.41941379,2498.6,2498.5,0.4801]
[1748835631796,1.41941379,2498.6,2498.5,41.2801]
[1748835631989,1.41941379,2498.6,2498.5,45.4511]
[1748835632291,1.41941379,2498.6,2498.5,44.971]
[1748835632493,1.41941379,2498.6,2498.5,45.4511]
[1748835634392,1.41941379,2498.6,2498.5,50.4511]
[1748835634586,0.25947004,2498.6,2498.5,53.6589]
[1748835635393,4e-08,2498.6,2498.5,53.6589]
[1748835636588,4e-08,2498.6,2498.5,49.4879]
[1748835636894,4e-08,2498.6,2498.5,53.6579]
[1748835638091,4e-08,2498.6,2498.5,53.98382963]
[1748835642897,4e-08,2498.6,2498.5,54.48382963]
[1748835644092,4e-08,2498.6,2498.5,50.31382963]
[1748835644395,4e-08,2498.6,2498.5,54.48382963]
[1748835644899,4e-08,2498.6,2498.5,49.1579]
[1748835645898,4e-08,2498.6,2498.5,49.48075868]
[1748835646899,4e-08,2498.6,2498.5,54.48075868]
[1748835648716,0.56277004,2498.8,2498.7,0.48006]
[1748835649210,0.56277004,2498.8,2498.7,5.48006]
[1748835649412,0.56277004,2498.8,2498.7,6.17606]
[1748835649611,0.56277004,2498.8,2498.7,7.46606]
[1748835651816,0.513,2498.8,2498.7,7.46606]
[1748835655513,0.513,2498.8,2498.7,2.46606]
[1748835656817,0.0508,2499.0,2498.9,0.48002]
[1748835657114,0.0508,2499.0,2498.9,7.85382]
[1748835657920,0.0508,2499.0,2498.9,8.35382]
[1748835660114,1.3114,2499.0,2498.9,8.35382]
[1748835664218,0.0508,2499.0,2498.9,8.35382]
[1748835666122,1.3678,2499.0,2498.9,4.18782]
[1748835666318,1.3678,2499.0,2498.9,8.35382]
[1748835666721,1.3678,2499.0,2498.9,4.18782]
[1748835667013,1.3678,2499.0,2498.9,8.35382]
[1748835668523,1.317,2499.0,2498.9,4.18782]
[1748835668725,1.317,2499.0,2498.9,8.35382]
[1748835672529,1.317,2499.0,2498.9,3.68782]
[1748835672729,1.317,2499.0,2498.9,7.85382]
[1748835673029,1.317,2499.0,2498.9,8.35382]
[1748835679231,1.317,2499.0,2498.9,8.34982]
[1748835683833,1.317,2499.0,2498.9,4.18782]
[1748835684127,1.317,2499.0,2498.9,8.34982]
[1748835685430,1.317,2499.0,2498.9,4.662]
[1748835685637,1.317,2499.0,2498.9,5.14202]
[1748835685934,1.317,2499.0,2498.9,0.98002]
[1748835686128,1.317,2499.0,2498.9,5.14202]
[1748835687634,1.317,2499.0,2498.9,4.64202]
[1748835687837,1.317,2499.0,2498.9,5.14202]
[1748835695231,6.317,2499.0,2498.9,5.14202]
[1748835695434,1.317,2499.0,2498.9,5.14202]
[1748835702741,1.53844426,2499.8,2499.5,1.19974]
[1748835702943,3.16218515,2500.1,2500.0,0.47981]
[1748835703139,0.6669,2500.6,2500.0,44.0078]
[1748835703338,1.2595,2500.5,2500.4,0.47972]
[1748835703540,2.34344612,2500.5,2500.4,0.47972]
[1748835703741,1.2595,2500.5,2500.3,0.47974]
[1748835703940,1.2595,2500.5,2500.4,0.47973]
[1748835704139,1.2595,2500.5,2500.1,5.4257]
[1748835704344,1.2595,2500.5,2500.4,0.47973]
[1748835705948,0.6669,2500.6,2500.5,0.47971]
[1748835706248,2.82286792,2502.2,2500.8,0.47965]
[1748835706249,1.2753,2500.9,2500.8,0.47965]
[1748835706439,3.2078,2501.1,2501.0,0.47962]
[1748835707041,8.2078,2501.1,2500.6,4.16799664]
[1748835707246,1.9298,2501.0,2500.7,0.47966]
[1748835707441,1.9298,2501.0,2500.6,0.00599664]
[1748835707646,1.9298,2501.0,2500.7,0.47966]
[1748835707949,1.9298,2501.0,2500.6,0.00599664]
[1748835708148,1.9298,2501.0,2500.9,0.47964]
[1748835709046,1.9298,2501.0,2500.8,0.47965]
[1748835709252,1.9298,2501.0,2500.8,0.47964]
[1748835710253,1.9298,2501.0,2500.6,0.00599664]
[1748835710450,1.9298,2501.0,2500.8,0.47965]
[1748835710654,1.9298,2501.0,2500.9,0.47964]
[1748835711153,6.9298,2501.0,2500.9,0.47964]
[1748835711455,1.9298,2501.0,2500.9,0.47964]
[1748835713354,2.00049789,2501.0,2500.9,0.47964]
[1748835717359,2.00049789,2501.0,2500.6,3.21379664]
[1748835717857,2.00049789,2501.0,2500.6,3.71379664]
[1748835718052,2.00049789,2501.0,2500.9,0.47964]
[1748835719559,1.9298,2501.0,2500.9,0.47964]
[1748835720255,2.5889,2501.0,2500.9,0.47964]
[1748835720460,2.65959789,2501.0,2500.9,0.47964]
[1748835721764,0.32924,2501.2,2501.1,0.4796]
[1748835722062,0.6414,2501.9,2501.8,0.47946]
[1748835722961,0.6414,2501.9,2501.4,3.2078]
[1748835723152,0.47949,2501.7,2501.4,0.47953]
[1748835723454,0.47951,2501.6,2501.4,0.47954]
[1748835723651,0.47952,2501.5,2501.2,41.27958]
[1748835723853,0.47951,2501.6,2501.3,0.47955]
[1748835724057,18.723,2501.5,2501.4,0.47954]
[1748835724253,21.9308,2501.7,2501.3,1.3832]
[1748835724466,22.00149789,2501.7,2501.6,0.4795]
[1748835724960,28.33349789,2501.7,2501.6,0.4795]
[1748835725464,23.33349789,2501.7,2501.6,0.4795]
[1748835726456,4.61049789,2501.7,2501.6,0.4795]
[1748835726659,0.07069789,2501.7,2501.6,0.4795]
[1748835727765,0.6414,2501.9,2501.8,0.47946]
[1748835728266,3.2078,2502.1,2501.5,1.3832]
[1748835728464,21.9298,2502.1,2501.5,5.5372]
[1748835728664,0.07069789,2501.7,2501.6,0.4795]
[1748835730458,3.2078,2502.7,2501.6,5.0]
[1748835730658,3.2078,2502.7,2502.6,0.47931]
[1748835730861,1.86415,2502.9,2502.3,44.0078]
[1748835731159,1.86416,2502.9,2502.6,0.4793]
[1748835731366,18.72,2502.8,2502.7,0.47929]
[1748835731562,18.72,2502.8,2502.4,5.5302]
[1748835731763,18.72,2502.8,2502.7,0.47929]
[1748835731960,1.3849,2502.9,2502.8,0.47927]
[1748835732369,3.2078,2503.0,2502.4,2.57455]
[1748835732569,3.2078,2503.0,2502.9,0.47925]
[1748835732870,3.2078,2503.0,2502.4,1.8762]
[1748835732871,8.2078,2503.0,2502.4,1.8762]
[1748835733062,0.47929,2502.8,2502.4,2.35554]
[1748835733268,1.8184,2502.7,2502.4,1.8762]
[1748835733667,20.5734,2502.7,2502.4,2.35554]
[1748835733863,20.0941,2502.7,2502.5,0.47932]
[1748835734063,20.0941,2502.7,2502.4,1.8762]
[1748835734064,20.57339,2502.7,2502.4,2.35554]
[1748835734465,20.57339,2502.7,2502.5,0.47933]
[1748835734970,20.0941,2502.7,2502.5,0.47931]
[1748835735165,20.0941,2502.7,2502.5,1.79871]
[1748835735672,1.8184,2502.7,2502.5,1.79873]
[1748835735967,1.3391,2502.7,2502.5,1.79873]
[1748835736163,20.5564,2502.7,2502.5,1.3194]
[1748835736362,20.5564,2502.7,2502.5,1.79872]
[1748835736562,20.5564,2502.7,2502.4,0.5]
[1748835736563,0.47933,2502.5,2502.4,0.5]
[1748835737760,5.47933,2502.5,2502.4,0.5]
[1748835741666,6.548347,2502.5,2502.4,0.5]
[1748835742366,6.55698691,2502.5,2502.4,0.5]
[1748835742566,20.27098691,2502.5,2502.4,0.5]
[1748835742972,2.94968691,2502.5,2502.4,0.5]
[1748835743171,21.66398574,2502.5,2502.4,0.5]
[1748835743574,0.47937,2502.3,2502.1,0.47939]
[1748835743769,0.47937,2502.3,2502.2,1.3189]
[1748835743968,18.714,2502.3,2502.2,1.3189]
[1748835744269,18.714,2502.3,2502.2,1.79829]
[1748835744473,18.714,2502.3,2502.2,1.3189]
[1748835744672,0.47937,2502.3,2502.2,1.3189]
[1748835744873,19.19337,2502.3,2502.2,1.3189]
[1748835745369,19.19338,2502.3,2502.0,0.47942]
[1748835745569,0.47938,2502.3,2502.1,0.4794]
[1748835745876,18.714,2502.2,2502.1,0.4794]
[1748835746375,19.19339,2502.2,2502.0,2.33471]
[1748835747073,18.714,2502.2,2502.1,0.47941]
[1748835749371,0.00863991,2502.5,2502.4,0.47935]
[1748835749971,0.0793378,2502.5,2502.4,1.87445]
[1748835751070,0.0793378,2502.5,2502.4,1.3951]
[1748835751273,0.0793378,2502.5,2502.0,3.7078]
[1748835751477,0.0793378,2502.5,2502.4,0.47935]
[1748835751676,18.7923378,2502.5,2502.4,0.47935]
[1748835752275,18.7923378,2502.5,2502.3,0.47936]
[1748835752778,18.7923378,2502.5,2502.4,0.47935]
[1748835753379,0.0793378,2502.5,2502.4,0.47935]
[1748835753581,0.0793378,2502.5,2502.4,3.68715]
[1748835754274,0.0793378,2502.5,2502.4,8.68715]
[1748835755380,0.0793378,2502.5,2502.4,12.84715]
[1748835755674,21.9208,2503.1,2502.9,0.47924]
[1748835755879,1.07458775,2503.0,2502.9,0.47925]
[1748835756583,3.2078,2503.1,2503.0,0.47923]
[1748835756776,4.28257984,2503.1,2503.0,0.47923]
[1748835757277,3.2078,2503.1,2503.0,0.47923]
[1748835758083,3.2078,2503.1,2502.8,0.47926]
[1748835758380,3.2078,2503.1,2502.9,0.47925]
[1748835758977,3.2078,2503.1,2503.0,0.47923]
[1748835759380,21.9188,2503.1,2503.0,0.47923]
[1748835759883,21.9178,2503.1,2503.0,0.47923]
[1748835760079,21.9178,2503.1,2502.9,0.47924]
[1748835760279,21.9178,2503.1,2503.0,1.3583]
[1748835760480,21.9178,2503.1,2503.0,1.83753]
[1748835760877,3.2078,2503.1,2503.0,1.83753]
[1748835761288,21.9178,2503.1,2503.0,1.83753]
[1748835761584,3.2078,2503.1,2503.0,1.83753]
[1748835761884,21.9178,2503.1,2503.0,1.83753]
[1748835762886,21.9178,2503.1,2503.0,2.33753]
[1748835764288,3.2078,2503.1,2503.0,2.33753]
[1748835766685,21.9158,2503.1,2503.0,2.33753]
[1748835768083,3.9154,2503.4,2503.3,0.47918]
[1748835768283,22.6234,2503.4,2503.3,0.47918]
[1748835768685,3.14750627,2504.3,2503.3,0.47918]
[1748835768885,3.2078,2503.8,2503.4,1.36649664]
[1748835769387,3.2078,2503.8,2503.7,0.4791]
[1748835769586,1.2891,2503.9,2503.4,1.36649664]
[1748835769587,1.2891,2503.9,2503.8,0.47908]
[1748835769790,21.07096789,2503.9,2503.8,0.47908]
[1748835770289,2.36296789,2503.9,2503.8,0.47908]
[1748835770591,21.07096789,2503.9,2503.8,0.47908]
[1748835771093,1.3829,2504.0,2503.9,0.47906]
[1748835771388,2.45672794,2504.0,2503.9,0.47906]
[1748835771593,20.0909,2504.0,2503.9,0.47906]
[1748835772291,1.3829,2504.0,2503.9,0.47906]
[1748835772789,1.3829,2504.0,2503.6,2.0435]
[1748835773093,1.3829,2504.0,2503.9,0.47906]
[1748835773387,3.2078,2504.1,2503.9,0.47905]
[1748835773587,0.6337,2504.0,2503.9,0.47905]
[1748835773893,2.0075,2504.0,2503.7,40.8]
[1748835774092,0.6337,2504.0,2503.9,0.47906]
[1748835774790,3.2078,2504.1,2504.0,0.47904]
[1748835774987,0.6853,2504.2,2504.1,0.47902]
[1748835776488,0.6853,2504.2,2503.8,5.4445]
[1748835776689,0.6853,2504.2,2504.1,0.47902]
[1748835776891,19.3903,2504.2,2504.1,0.47902]
[1748835777391,20.7612,2504.2,2503.8,1.2955]
[1748835777594,21.24021,2504.2,2504.0,0.47904]
[1748835777789,0.47906,2504.0,2503.8,0.47907]
[1748835777994,23.969,2504.2,2503.7,41.27909]
[1748835778193,0.6873,2503.9,2503.8,0.47908]
[1748835778391,0.47913,2503.6,2503.4,0.48514664]
[1748835778590,18.703,2503.5,2503.4,0.48514664]
[1748835778789,20.7612,2503.5,2503.4,41.28514664]
[1748835778992,0.6873,2503.5,2503.4,41.28514664]
[1748835779392,0.6873,2503.5,2503.4,0.48514664]
[1748835779590,19.3903,2503.5,2503.4,0.00599664]
[1748835779795,19.86944,2503.5,2503.4,0.00599664]
[1748835780188,0.6873,2503.5,2503.4,0.00599664]
[1748835780398,19.86944,2503.5,2503.4,0.00599664]
[1748835780598,21.20264,2503.5,2503.4,0.00599664]
[1748835780800,20.7235,2503.5,2503.4,0.00599664]
[1748835781599,21.79816932,2503.5,2503.4,0.48515664]
[1748835781792,21.79816932,2503.5,2503.4,0.00599664]
[1748835782193,30.94716932,2503.5,2502.2,3.18954396]
[1748835782391,3.2078,2503.1,2502.3,1.79116]
[1748835782593,0.4793,2502.7,2502.4,0.47934]
[1748835782798,19.383,2502.6,2502.4,0.47934]
[1748835783496,20.714,2502.6,2502.4,0.47934]
[1748835783901,20.714,2502.6,2502.3,0.5]
[1748835784104,0.47935,2502.4,2502.3,0.5]
[1748835785600,2.83586248,2502.4,2502.3,0.5]
[1748835786201,2.35651248,2502.4,2502.3,0.5]
[1748835786400,25.23551248,2502.4,2502.3,0.5]
[1748835786706,25.71486248,2502.4,2502.3,0.5]
[1748835788702,25.7126406,2502.4,2502.3,0.5]
[1748835788903,25.9547565,2502.4,2502.3,0.5]
[1748835789099,25.95475411,2502.4,2502.3,0.5]
[1748835789696,25.7126406,2502.4,2502.3,0.5]
[1748835791404,25.69431656,2502.4,2502.3,0.5]
[1748835791610,24.62295,2502.4,2502.3,0.5]
[1748835793299,5.91095,2502.4,2502.3,0.5]
[1748835793504,24.62295,2502.4,2502.3,0.5]
[1748835795205,0.47937,2502.3,2502.2,0.00599664]
[1748835795503,1.84117,2502.3,2502.2,0.00599664]
[1748835797901,24.70517,2502.3,2502.2,0.00599664]
[1748835799507,24.70617,2502.3,2502.2,0.00599664]
[1748835800009,29.70617,2502.3,2502.2,0.00599664]
[1748835800508,24.77686789,2502.3,2502.2,0.00599664]
[1748835801305,0.47948,2501.7,2501.6,1.3259]
[1748835801807,3.2078,2502.0,2501.6,2.3054]
[1748835802012,0.47946,2501.8,2501.6,2.3054]
[1748835802208,0.47948,2501.8,2501.6,2.3054]
[1748835803804,0.47948,2501.7,2501.6,2.3054]
[1748835804005,0.47948,2501.7,2501.6,0.5]
[1748835804207,2.0239,2501.9,2501.6,0.5]
[1748835804408,0.47948,2501.7,2501.6,0.5]
[1748835804710,0.47947,2501.8,2501.6,0.9795]
[1748835805103,18.715,2501.7,2501.6,0.9795]
[1748835805500,0.47947,2501.8,2501.6,0.9795]
[1748835805807,18.715,2501.7,2501.6,0.9795]
[1748835810214,19.19448,2501.7,2501.6,0.9795]
[1748835811112,19.19448,2501.7,2501.6,0.5]
[1748835811610,19.78955996,2501.7,2501.6,0.9795]
[1748835811811,1.07455996,2501.7,2501.6,0.9795]
[1748835812006,19.78955996,2501.7,2501.6,0.9795]
[1748835812409,20.26903996,2501.7,2501.6,0.5]
[1748835812713,20.46793996,2501.7,2501.6,0.5]
[1748835813115,20.71055823,2501.7,2501.6,0.5]
[1748835813412,20.71055859,2501.7,2501.6,0.5]
[1748835813611,20.71056076,2501.7,2501.6,0.5]
[1748835814011,20.71056446,2501.7,2501.6,0.5]
[1748835814208,20.71056426,2501.7,2501.6,0.5]
[1748835814610,20.71056752,2501.7,2501.6,0.5]
[1748835814907,20.71056706,2501.7,2501.6,0.5]
[1748835815112,20.71056135,2501.7,2501.6,0.5]
[1748835815313,20.71324823,2501.7,2501.6,0.5]
[1748835815509,20.71324742,2501.7,2501.6,0.5]
[1748835815713,20.78394531,2501.7,2501.6,0.5]
[1748835816011,20.78394336,2501.7,2501.6,0.5]
[1748835816215,20.78394403,2501.7,2501.6,0.5]
[1748835816515,20.78394398,2501.7,2501.6,0.5]
[1748835816710,21.02669091,2501.7,2501.6,0.5]
[1748835816911,20.78394398,2501.7,2501.6,0.5]
[1748835817216,2.31169497,2501.7,2501.6,0.5]
[1748835817422,21.02669497,2501.7,2501.6,0.5]
[1748835817610,20.78394398,2501.7,2501.6,0.5]
[1748835817810,21.02669011,2501.7,2501.5,0.47951]
[1748835818013,1.31986463,2501.6,2501.5,0.47951]
[1748835818212,1.31984071,2501.6,2501.5,0.47951]
[1748835819114,1.31984071,2501.6,2501.5,1.75061]
[1748835819314,1.31983148,2501.6,2501.5,1.75061]
[1748835819617,1.31981968,2501.6,2501.5,1.75061]
[1748835819815,1.31983241,2501.6,2501.5,1.75061]
[1748835820015,1.31983639,2501.6,2501.5,1.75061]
[1748835820217,1.31983465,2501.6,2501.5,1.75061]
[1748835820511,1.3198347,2501.6,2501.5,9.95841]
[1748835820719,0.24274723,2501.7,2501.6,0.4795]
[1748835821017,21.9218,2502.5,2502.4,0.47935]
[1748835821218,3.2078,2502.5,2502.4,0.47935]
[1748835822413,18.714,2502.7,2502.5,0.47932]
[1748835822919,18.714,2502.7,2502.6,1.3493]
[1748835824007,19.19329,2502.7,2502.6,1.3493]
[1748835824518,18.712,2502.7,2502.6,1.3493]
[1748835824717,19.19129,2502.7,2502.6,1.3493]
[1748835826417,0.005955,2502.8,2502.7,0.47929]
[1748835826617,0.005955,2502.8,2502.7,1.12389]
[1748835826816,0.005955,2502.8,2502.7,6.12389]
[1748835829423,0.005955,2502.8,2502.7,1.12389]
[1748835830116,0.07665289,2502.8,2502.7,5.27189]
[1748835834020,0.07665289,2502.8,2502.7,10.27189]
[1748835836913,0.07665289,2502.8,2502.7,51.07189]
[1748835837618,0.07665289,2502.8,2502.7,46.07189]
[1748835837825,0.07665289,2502.8,2502.7,46.57189]
[1748835838319,0.07665289,2502.8,2502.7,42.42389]
[1748835840025,0.07665289,2502.8,2502.7,47.42389]
[1748835840525,0.07665289,2502.8,2502.7,42.42389]
[1748835841625,0.07665289,2502.8,2502.7,41.77929]
[1748835845723,0.07665289,2502.8,2502.7,0.5]
[1748835845928,1.82262289,2502.8,2502.7,0.5]
[1748835846719,6.82262289,2502.8,2502.7,0.5]
[1748835847117,0.47933,2502.5,2502.2,3.2078]
[1748835847332,20.5963,2502.4,2502.3,0.47936]
[1748835847925,20.5963,2502.4,2502.1,44.947]
[1748835848233,0.6616,2502.3,2502.2,0.47939]
[1748835848427,1.9237,2502.3,2502.2,0.47939]
[1748835848621,1.9237,2502.3,2501.9,44.0078]
[1748835848926,18.698,2502.2,2502.1,0.47939]
[1748835849123,19.9601,2502.2,2502.1,0.47939]
[1748835849631,20.43949,2502.2,2502.0,0.47942]
[1748835849821,20.43949,2502.2,2501.9,3.2078]
[1748835850028,20.43949,2502.2,2501.9,3.68724]
[1748835850820,0.47942,2502.1,2501.9,3.2078]
[1748835851128,1.306,2502.0,2501.9,3.68724]
[1748835851522,1.306,2502.0,2501.9,3.2078]
[1748835851720,1.78542,2502.0,2501.9,3.2078]
[1748835852133,0.47945,2501.9,2501.6,3.2078]
[1748835852329,1.3592,2501.8,2501.6,3.68729]
[1748835852529,19.3486,2501.7,2501.6,3.68729]
[1748835852730,19.3486,2501.7,2501.5,0.4795]
[1748835852930,1.3592,2501.6,2501.5,0.4795]
[1748835857539,20.0602,2501.6,2501.5,0.4795]
[1748835860436,20.13089789,2501.6,2501.5,0.4795]
[1748835860731,0.47952,2501.5,2501.4,0.00599664]
[1748835860929,1.86283,2501.5,2501.3,0.47956]
[1748835861135,0.6889,2501.4,2501.3,0.47956]
[1748835861433,2.0338,2501.4,2501.3,0.47956]
[1748835861634,2.51334,2501.4,2501.2,0.47957]
[1748835862835,2.0338,2501.4,2501.0,1.38149664]
[1748835863040,2.0338,2501.4,2501.1,0.4796]
[1748835863041,0.47957,2501.3,2501.1,0.4796]
[1748835863232,1.3449,2501.2,2501.1,0.4796]